Workbook

Sheet Sheet1
A1: 贵阳市大数据对外交流合作中心2024年公开招聘事业单位工作人员面试成绩、总成绩、总排名及进入体检环节人员名单
A2: 序号 | B2: 姓名 | C2: 准考证号 | D2: 单位 | E2: 报考岗位及代码 | F2: 笔试成绩 | G2: 笔试成绩（百分制） | H2: 笔试成绩60% | I2: 面试成绩 | J2: 面试成绩40% | K2: 总成绩 | L2: 总排名 | M2: 是否进入体检
A3: 1 | B3: 蔡姿颖 | C3: 1152014802228 | D3: 贵阳市大数据对外交流合作中心 | E3: 20101007101 | F3: 199 | G3: =F3/3 -> 66.33 | H3: =G3*60% -> 39.80 | I3: 83.40 | J3: =I3*40% -> 33.36 | K3: =J3+H3 -> 73.16 | L3: 1 | M3: 是
A4: 2 | B4: 何菊 | C4: 1152014800607 | D4: 贵阳市大数据对外交流合作中心 | E4: 20101007101 | F4: 197.5 | G4: 65.83 | H4: =G4*60% -> 39.50 | I4: 78.80 | J4: =I4*40% -> 31.52 | K4: =J4+H4 -> 71.02 | L4: 2
A5: 3 | B5: 令狐锦锦 | C5: 1152014800114 | D5: 贵阳市大数据对外交流合作中心 | E5: 20101007101 | F5: 189 | G5: 63.00 | H5: =G5*60% -> 37.80 | I5: 75.60 | J5: =I5*40% -> 30.24 | K5: =J5+H5 -> 68.04 | L5: 3
A7: 1 | B7: 陈忠健 | C7: 1152014802002 | D7: 贵阳市大数据对外交流合作中心 | E7: 20101007102 | F7: 227 | G7: 75.67 | H7: =G7*60% -> 45.40 | I7: 84.60 | J7: =I7*40% -> 33.84 | K7: =J7+H7 -> 79.24 | L7: 1 | M7: 是
A8: 2 | B8: 叶开 | C8: 1152014801012 | D8: 贵阳市大数据对外交流合作中心 | E8: 20101007102 | F8: 212.5 | G8: =F8/3 -> 70.83 | H8: =G8*60% -> 42.50 | I8: 88.00 | J8: =I8*40% -> 35.20 | K8: =J8+H8 -> 77.70 | L8: 2 | M8: 是
A9: 3 | B9: 钟崇昱 | C9: 1152014801811 | D9: 贵阳市大数据对外交流合作中心 | E9: 20101007102 | F9: 214 | G9: =F9/3 -> 71.33 | H9: =G9*60% -> 42.80 | I9: 84.40 | J9: =I9*40% -> 33.76 | K9: =J9+H9 -> 76.56 | L9: 3
A10: 4 | B10: 舒一君 | C10: 1152014802913 | D10: 贵阳市大数据对外交流合作中心 | E10: 20101007102 | F10: 218 | G10: =F10/3 -> 72.67 | H10: =G10*60% -> 43.60 | I10: 82.20 | J10: =I10*40% -> 32.88 | K10: =J10+H10 -> 76.48 | L10: 4
A11: 5 | B11: 龙邦淞 | C11: 1152014800224 | D11: 贵阳市大数据对外交流合作中心 | E11: 20101007102 | F11: 215.5 | G11: =F11/3 -> 71.83 | H11: =G11*60% -> 43.10 | I11: 81.40 | J11: =I11*40% -> 32.56 | K11: =J11+H11 -> 75.66 | L11: 5
A12: 6 | B12: 李小雪 | C12: 1152014800906 | D12: 贵阳市大数据对外交流合作中心 | E12: 20101007102 | F12: 210 | G12: =F12/3 -> 70.00 | H12: =G12*60% -> 42.00 | I12: 76.80 | J12: =I12*40% -> 30.72 | K12: =J12+H12 -> 72.72 | L12: 6
